Cogmind - Beta 10 X2 @@@ ROGUE MODE // 2020.09.08 @ 23:56:33 Player: Torako Result: Self-destructed Performance ------------- Evolutions (5) 2500 Regions Visited (7) 1400 Robots Destroyed (77) 385 Value Destroyed (2416) 2416 Prototype IDs (11) 220 Alien Tech Used (0) 0 Bonus (0) 0 TOTAL SCORE: 6921 Bonus ------- None Cogmind --------- Core Integrity 659/1000 Matter 300/300 Energy 126/160 System Corruption 15% Temperature Cool (0) Movement Walking (180) Ox2 Location -5/Factory Parts ------- > --- POWER (2) -------- Light Fission Core > --- PROPULSION (5) --- Carbon-fiber Leg > --- UTILITY (7) ------ Large Storage Unit Advanced Signal Interpreter Advanced Terrain Scan Processor Improved Actuator Array Force Booster > --- WEAPON (3) ------- Chainsword > --- INVENTORY (10) --- Energy Well (476) Advanced Sensor Array Improved Terrain Scanner Improved Armor Integrity Analyzer Maneuvering Thrusters System Shield Proton Missile Launcher Peak State ------------ > --- POWER ------------ Light Angular Momentum Engine Fission Core > --- PROPULSION ------- Flexi-carbon Leg Flexi-carbon Leg Flexi-carbon Leg Wheel Compact Wheel > --- UTILITY ---------- Large Storage Unit Advanced Sensor Array Advanced Signal Interpreter Improved Terrain Scanner Advanced Terrain Scan Processor Advanced Melee Analysis Suite Hacking Suite > --- WEAPON ----------- Chainsword Chainsword Chainsword > --- INVENTORY -------- Light Fission Core Energy Well Improved Armor Integrity Analyzer Improved Actuator Array Force Booster Maneuvering Thrusters System Shield Disruptor Cannon Proton Missile Launcher [Rating: 64] Favorites ----------- Power Heavy Ion Engine Engine Heavy Ion Engine Power Core Light Nuclear Core Propulsion Aluminum Leg Treads Armored Treads Leg Aluminum Leg Wheel Compact Wheel Hover Unit Gravmag System Utility Large Storage Unit Device Improved Terrain Scanner Storage Large Storage Unit Processor Advanced Signal Interpreter Hackware Hacking Suite Protection Improved Medium Armor Plating Weapon Chainsword Energy Gun EM Pulse Gun Energy Cannon Advanced Beam Cannon Ballistic Gun Heavy Assault Rifle Slashing Weapon Chainsword Build | -11 -10 -10 -9 -8 -7 -6 -5 ------- Run | Scr Mat Min Mat Mat Fac Fac Fac Slots Evolved 10 | . . . 2 2 2 2 2 Power 1 | . . . 1 . . . . Propulsion 3 | . . . 1 1 1 . . Utility 5 | . . . . 1 1 1 2 Weapon 1 | . . . . . . 1 . Parts Attached 116 | . 5 . 26 20 11 37 17 Power 21 | . . . 9 2 . 7 3 Engine 13 | . . . 7 1 . 4 1 Core 8 | . . . 2 1 . 3 2 Reactor . | . . . . . . . . Propulsion 42 | . . . 9 11 1 17 4 Treads 6 | . . . 2 4 . . . Leg 18 | . . . 7 3 . 4 4 Wheel 4 | . . . . . . 4 . Hover 14 | . . . . 4 1 9 . Flight . | . . . . . . . . Utility 35 | . 4 . 1 4 7 12 7 Device 22 | . 1 . . 2 3 10 6 Storage 6 | . 3 . 1 1 1 . . Processor 3 | . . . . 1 . 2 . Hackware 2 | . . . . . 1 . 1 Protection 2 | . . . . . 2 . . Artifact . | . . . . . . . . Weapon 18 | . 1 . 7 3 3 1 3 Energy Gun . | . . . . . . . . Energy Cannon 2 | . . . 1 . . . 1 Ballistic Gun 10 | . 1 . 6 3 . . . Ballistic Cannon . | . . . . . . . . Launcher . | . . . . . . . . Special Weapon . | . . . . . . . . Impact Weapon . | . . . . . . . . Slashing Weapon 6 | . . . . . 3 1 2 Piercing Weapon . | . . . . . . . . Special Melee Weapon . | . . . . . . . . Unidentified Prototypes 3 | . . . 3 . . . . Parts Lost 42 | . 1 . 6 5 1 11 18 Power 9 | . . . 2 1 . 2 4 Propulsion 24 | . . . 4 3 1 8 8 Utility 3 | . . . . . . 1 2 Weapon 6 | . 1 . . 1 . . 4 Highest Loss Streak 9 | . 1 . 2 4 1 7 9 Average Slot Usage (%) 96 | . 99 100 99 96 98 95 88 Engine 11 | . 14 14 20 10 7 5 4 Core 4 | . . . 1 6 7 6 4 Treads 1 | . . . 1 6 . . . Leg 18 | . 28 28 31 21 . 1 14 Wheel 2 | . . . . . . 6 5 Hover 7 | . . . . 4 36 21 . Device 5 | . 7 . . 1 4 12 11 Storage 15 | . 20 28 22 24 9 6 5 Processor 5 | . . . . . 7 9 16 Hackware 1 | . . . . . 4 3 4 Energy Cannon 1 | . . . 4 . . . . Ballistic Gun 10 | . 17 28 17 18 3 . . Slashing Weapon 7 | . . . . . 11 20 14 Naked Turns . | . . . . . . . . Heaviest Build 70 | 13 40 40 55 70 46 57 51 Greatest Support 80 | 20 20 20 33 80 55 52 60 Greatest Overweight (x) 11 | . 1 1 2 2 1 3 11 Average Overweight (x) . | . . 1 1 . . . 1 Largest Inventory Capacity 22 | . 16 16 16 22 12 10 10 Average Capacity 13 | . 11 16 16 20 10 10 10 Most Carried 22 | . 14 14 16 22 12 10 9 Average Carried 12 | . 9 14 15 18 10 9 8 Final Capacity 16 | 6 16 16 16 10 10 10 10 Final Carried 16 | 6 14 14 16 10 10 9 7 Class Distribution -------------------- 47% | Mutant 13% | Hauler-Mutant 12% | Scavenger-Mutant 11% | Scout 11% | Scavenger-Assassin 3% | Assassin Dominant Class ---------------- Mutant | -10/Materials Mutant | -10/Mines Mutant | -9/Materials Hauler-Mutant | -8/Materials Mutant | -7/Factory Scout | -6/Factory Scavenger-Assassin | -5/Factory Resources | -11 -10 -10 -9 -8 -7 -6 -5 ----------- Run | Scr Mat Min Mat Mat Fac Fac Fac Matter Collected 2548 | 200 90 59 784 789 116 338 172 Remotely . | . . . . . . . . Salvage Created 3367 | . 160 . 1009 629 116 894 559 Parts 192 | . 13 . 71 39 8 41 20 Haulers Intercepted 1 | . . . . . . 1 . Recyclers Shooed 4 | . . . 1 1 . . 2 Parts Field Recycled . | . . . . . . . . Retrieved Matter . | . . . . . . . . Parts Self-Destructed . | . . . . . . . . Prevented . | . . . . . . . . Kills | -11 -10 -10 -9 -8 -7 -6 -5 ------- Run | Scr Mat Min Mat Mat Fac Fac Fac Combat Hostiles Destroyed 61 | . 5 . 26 11 2 7 10 Melee 17 | . . . . . 1 7 9 Guns 42 | . 5 . 25 11 1 . . Cannons 2 | . . . 1 . . . 1 Classes Destroyed 14 | . 2 . 3 4 1 2 2 Worker 3 | . . . 1 . . . 2 Tunneler 1 | . . . . . . . 1 Hauler 1 | . . . . . . 1 . Recycler 4 | . . . 1 1 . 2 . Mechanic 1 | . . . . 1 . . . Operator 2 | . . . . 1 . 1 . Watcher 4 | . . . . . . 4 . Swarmer 20 | . 3 . 11 2 . . 4 Grunt 22 | . 2 . 8 4 . 3 5 Brawler 1 | . . . . 1 . . . Duelist 1 | . . . . . . . 1 Sentry 12 | . . . 7 3 1 1 . Hunter 3 | . . . . 1 . 2 . Programmer 2 | . . . . . 1 1 . Best Kill Streak 8 | . 3 . 8 4 1 3 4 Combat Bots Only 8 | . 3 . 8 4 1 1 4 Max Kills in Single Turn 2 | . 1 . 2 1 1 1 2 Gunslinging 1 | . . . 1 . . . . Exploded . | . . . . . . . . Melee 2 | . . . . . 1 1 2 Uniques/NPCs Destroyed . | . . . . . . . . Combat | -11 -10 -10 -9 -8 -7 -6 -5 -------- Run | Scr Mat Min Mat Mat Fac Fac Fac Damage Taken 5536 | . 235 . 1281 1012 414 1034 1560 Core 934 | . 70 . 150 58 82 233 341 Absorbed by Shields 241 | . . . . . . 241 . Core Remaining (%) 80 | 100 . 72 62 89 88 72 . Volleys Fired 170 | . 15 2 75 66 4 . 8 Largest 2 | . 2 2 2 2 2 . 1 Hottest 91 | . 60 40 91 46 50 . 81 Shots Fired 328 | . 29 4 147 132 8 . 8 Gun 306 | . 29 4 133 132 8 . . Cannon 22 | . . . 14 . . . 8 Launcher . | . . . . . . . . Special . | . . . . . . . . Kinetic 294 | . 17 4 133 132 8 . . Thermal 14 | . . . 14 . . . . Explosive . | . . . . . . . . Electromagnetic 20 | . 12 . . . . . 8 Robot Hit Streak 13 | . 13 1 8 8 3 . 6 Robot Miss Streak 5 | . 1 3 5 3 1 . 1 Penetration Max . | . . . . . . . . Secondary Targets 6 | . . . 4 2 . . . Max Gunslinging Chain 1 | . . . 1 1 . . . Shots Hit Robots 295 | . 22 1 88 79 11 43 51 Core Hits 117 | . 8 . 39 26 4 21 19 Critical Hits 11 | . 1 . 2 2 . 3 3 Critical Kills 2 | . . . . . . 1 1 Critical Parts Destroyed 9 | . 1 . 2 2 . 2 2 Melee Attacks 158 | . . . . . 11 84 63 Impact . | . . . . . . . . Slashing 158 | . . . . . 11 84 63 Piercing . | . . . . . . . . Sneak Attacks 9 | . . . . . . 4 5 Combat Hostiles . | . . . . . . . . Follow-up Attacks 21 | . . . . . 1 14 6 Damage Inflicted 7112 | . 273 8 1373 1074 357 1991 2036 Guns 2586 | . 273 8 1188 1022 95 . . Cannons 312 | . . . 185 . . . 127 Explosions . | . . . . . . . . Melee 4162 | . . . . . 262 1991 1909 Ramming 52 | . . . . 52 . . . Kinetic 2442 | . 129 8 1188 1022 95 . . Thermal 185 | . . . 185 . . . . Explosive . | . . . . . . . . Electromagnetic 271 | . 144 . . . . . 127 Impact . | . . . . . . . . Slashing 4162 | . . . . . 262 1991 1909 Piercing . | . . . . . . . . Highest Corruption 15 | . . . 1 1 1 1 15 Average Corruption 1 | . . . 1 1 1 1 6 Corruption Purged . | . . . . . . . . Effects 10 | . . . 1 2 2 2 3 Message Errors 2 | . . . . . . 2 . Energy Discharges 2 | . . . . . 1 . 1 Data Loss (minor) 2 | . . . . 2 . . . Targeting Errors 4 | . . . 1 . 1 . 2 Overload Shots . | . . . . . . . . Overflow Damage 457 | . . . . . . 163 294 Projectiles . | . . . . . . . . Explosions . | . . . . . . . . Melee 457 | . . . . . . 163 294 Knockbacks . | . . . . . . . . Impact . | . . . . . . . . Kinetic . | . . . . . . . . Secondary . | . . . . . . . . Self-Inflicted Damage . | . . . . . . . . Shots . | . . . . . . . . Rammed 3 | . . . . 3 . . . Targets Rammed 4 | . . . . 4 . . . Kicked . | . . . . . . . . Crushed 1 | . . . . 1 . . . Highest Temperature 237 | . 81 . 237 58 45 4 77 Average Temperature 42 | . 51 . 72 19 17 3 19 Received Heat Transfer 1448 | . 99 . 390 342 30 215 372 Siege Activations . | . . . . . . . . Robots Corrupted . | . . . . . . . . Combat Hostiles . | . . . . . . . . Parts Fried 2 | . 1 . . . . . 1 Impact Corruptions . | . . . . . . . . Robots Melted . | . . . . . . . . Combat Hostiles . | . . . . . . . . Parts Melted . | . . . . . . . . Heat Transferred 333 | . . . 333 . . . . Parts Sabotaged . | . . . . . . . . Parts Stolen . | . . . . . . . . Parts Stripped . | . . . . . . . . Power Chain Reactions . | . . . . . . . . Missiles Intercepted . | . . . . . . . . Alert | -11 -10 -10 -9 -8 -7 -6 -5 ------- Run | Scr Mat Min Mat Mat Fac Fac Fac Peak Influence 401 | . 150 . 305 238 184 401 204 Average Influence 135 | . 67 . 155 144 141 137 143 Maximum Alert Level 2 | . . . 1 1 . 2 1 Low Security (%) 82 | . 100 100 64 79 100 89 90 Level 1 15 | . . . 35 20 . 2 9 Level 2 2 | . . . . . . 8 . Level 3 . | . . . . . . . . Level 4 . | . . . . . . . . Level 5 . | . . . . . . . . High Security . | . . . . . . . . Max Security . | . . . . . . . . Squads Dispatched 8 | . 1 . 1 1 . 5 . Investigation 3 | . . . 1 . . 2 . Extermination 1 | . . . . . . 1 . Reinforcement 4 | . 1 . . 1 . 2 . Assault . | . . . . . . . . Garrison . | . . . . . . . . Intercept . | . . . . . . . . Construction Impeded . | . . . . . . . . Haulers Reinforced . | . . . . . . . . Stealth | -11 -10 -10 -9 -8 -7 -6 -5 --------- Run | Scr Mat Min Mat Mat Fac Fac Fac Distress Signals 6 | . 1 . 3 1 . . 1 Communications Jammed . | . . . . . . . . Distress Signals . | . . . . . . . . Times Spotted 97 | . 7 1 34 21 3 16 15 Peak Tracking Total 7 | . 4 1 5 7 2 3 6 Tactical Retreats 5 | . . . 1 . . 2 2 Traps | -11 -10 -10 -9 -8 -7 -6 -5 ------- Run | Scr Mat Min Mat Mat Fac Fac Fac Traps Triggered 4 | . . . 2 . . 2 . Indirectly . | . . . . . . . . Trap Hack Attempts . | . . . . . . . . Triggered . | . . . . . . . . Disarmed . | . . . . . . . . Reprogrammed . | . . . . . . . . Reused . | . . . . . . . . Traps Extracted . | . . . . . . . . Installed . | . . . . . . . . Triggered . | . . . . . . . . Machines | -11 -10 -10 -9 -8 -7 -6 -5 ---------- Run | Scr Mat Min Mat Mat Fac Fac Fac Machines Disabled 2 | . 1 . . 1 . . . Max in Single Turn 1 | . 1 . . 1 . . . Garrison Access 1 | . . . . . . 1 . Machines Sabotaged . | . . . . . . . . Garrisons Compromised . | . . . . . . . . Overloaded Fab Kills . | . . . . . . . . Fab Network Shutdowns 1 | . . . . . . 1 . Hacking | -11 -10 -10 -9 -8 -7 -6 -5 --------- Run | Scr Mat Min Mat Mat Fac Fac Fac Machines Accessed 18 | . 3 . 5 2 1 6 1 Terminals 14 | . 3 . 5 2 1 2 1 Fabricators 2 | . . . . . . 2 . Repair Stations 1 | . . . . . . 1 . Recycling Units . | . . . . . . . . Scanalyzers . | . . . . . . . . Garrison Access 1 | . . . . . . 1 . Total Hacks 45 | . 7 . 13 4 5 12 4 Successful 24 | . 3 . 5 2 3 9 2 Failed 21 | . 4 . 8 2 2 3 2 Catastrophic 2 | . . . 1 1 . . . Database Lockouts . | . . . . . . . . Manual 11 | . 3 . 1 1 4 2 . Terminals 39 | . 7 . 13 4 5 6 4 Fabricators 3 | . . . . . . 3 . Repair Stations 2 | . . . . . . 2 . Recycling Units . | . . . . . . . . Scanalyzers . | . . . . . . . . Garrison Access 1 | . . . . . . 1 . Terminal Hacks 16 | . 2 . 5 2 2 3 2 Prototype ID Bank 4 | . . . 2 1 . 1 . Branch Access Points 1 | . . . . . . . 1 Terminal Index 2 | . 1 . . . 1 . . Unreport Threat 1 | . . . 1 . . . . Locate Traps 1 | . 1 . . . . . . Hauler Manifests 2 | . . . 1 1 . . . Registered Components 1 | . . . . . . 1 . Registered Prototypes 2 | . . . 1 . . . 1 Zone Layout 2 | . . . . . 1 1 . Fabricator Hacks 2 | . . . . . . 2 . Build 2 | . . . . . . 2 . Repair Station Hacks 2 | . . . . . . 2 . Scan Component 1 | . . . . . . 1 . Repair 1 | . . . . . . 1 . Recycling Unit Hacks . | . . . . . . . . Scanalyzer . | . . . . . . . . Garrison Access Hacks 1 | . . . . . . 1 . Seal Access 1 | . . . . . . 1 . Unauthorized Hacks 3 | . 1 . . . 1 1 . Terminals 3 | . 1 . . . 1 1 . Track 1 | . 1 . . . . . . Botnet 2 | . . . . . 1 1 . Fabricators . | . . . . . . . . Repair Stations . | . . . . . . . . Recycling Units . | . . . . . . . . Scanalyzers . | . . . . . . . . Garrison Access . | . . . . . . . . Data Cores Recovered 1 | . . . . 1 . . . Used 1 | . . . . 1 . . . Hacking Detections 13 | . 2 . 4 2 1 3 1 Full Trace Events 3 | . . . 2 . . 1 . Feedback Events 1 | . . . . . . 1 . Corruption 1 | . . . . . . 1 . Feedback Blocked . | . . . . . . . . Robot Schematics Acquired . | . . . . . . . . Robots Built 4 | . . . . . . 4 . Matter 252 | . . . . . . 252 . Time 134 | . . . . . . 134 . Total Robot Build Rating 16 | . . . . . . 16 . Part Schematics Acquired . | . . . . . . . . Parts Built 2 | . . . . . . 2 . Matter 234 | . . . . . . 234 . Time 58 | . . . . . . 58 . Total Part Build Rating 14 | . . . . . . 14 . Parts Repaired 1 | . . . . . . 1 . Time 44 | . . . . . . 44 . Parts Recycled . | . . . . . . . . Recycled Matter . | . . . . . . . . Retrieved Matter . | . . . . . . . . Retrieved Components . | . . . . . . . . Parts Scanalyzed . | . . . . . . . . Part Schematics Acquired . | . . . . . . . . Parts Damaged . | . . . . . . . . Bothacking | -11 -10 -10 -9 -8 -7 -6 -5 ------------ Run | Scr Mat Min Mat Mat Fac Fac Fac Used RIF Installer . | . . . . . . . . Robots Hacked . | . . . . . . . . Non-combat . | . . . . . . . . Combat . | . . . . . . . . Robot Hacks Applied . | . . . . . . . . Relay Couplers Released . | . . . . . . . . Robots Rewired . | . . . . . . . . Allies Hacked . | . . . . . . . . Hacks Repelled . | . . . . . . . . Allies | -11 -10 -10 -9 -8 -7 -6 -5 -------- Run | Scr Mat Min Mat Mat Fac Fac Fac Total Allies 4 | . . . . . . 4 . Largest Group 4 | . . . . . . 4 . Highest-Rated Group 48 | . . . . . . 48 . Highest-Rated Ally 12 | . . . . . . 12 . Total Orders . | . . . . . . . . Ally Attacks 2 | . . . . . . 2 . Total Damage 33 | . . . . . . 33 . Kills . | . . . . . . . . Allies Corrupted . | . . . . . . . . Allies Melted . | . . . . . . . . Intel | -11 -10 -10 -9 -8 -7 -6 -5 ------- Run | Scr Mat Min Mat Mat Fac Fac Fac Robot Analysis Total . | . . . . . . . . Derelict Logs Recovered . | . . . . . . . . Drone Launches . | . . . . . . . . Drone Recoveries . | . . . . . . . . Exploration | -11 -10 -10 -9 -8 -7 -6 -5 ------------- Run | Scr Mat Min Mat Mat Fac Fac Fac Turns Passed 4467 | . 407 97 1202 743 172 1091 755 Spaces Moved 2739 | 1 222 59 561 345 146 1192 213 Core 2 | . . . . . . . 2 Treads 65 | . . . . 65 . . . Legs 1148 | 1 222 59 561 201 . . 104 Wheels 475 | . . . . . . 368 107 Hover 1049 | . . . . 79 146 824 . Flight . | . . . . . . . . Fastest Speed 44 | 120 120 150 150 48 44 44 100 Average Speed 105 | 120 149 150 153 136 45 68 128 Slowest Speed 600 | 120 150 150 180 210 108 186 600 Overloaded Moves . | . . . . . . . . Propulsion Burnouts . | . . . . . . . . Robots Hopped . | . . . . . . . . Cave-ins Triggered . | . . . . . . . . Exploration Rate (%) 25 | 2 33 17 74 29 4 35 7 Regions Visited 7 Branch Regions 1 Pre-discovered Areas . | . . . . . . . . Known Exits Taken 3 | . . . . 1 1 1 . Unknown Exits Taken 4 | 1 1 1 1 . . . . Scrap Searched . | . . . . . . . . Spaces Dug 24 | . . . . . . 16 8 Terrain Destroyed 24 | . . . . . . 16 8 Melee 24 | . . . . . . 16 8 Projectile . | . . . . . . . . AOE . | . . . . . . . . Actions | -11 -10 -10 -9 -8 -7 -6 -5 --------- Run | Scr Mat Min Mat Mat Fac Fac Fac Total 3819 | . 270 64 780 509 229 1374 593 Wait 505 | . 14 4 56 25 46 63 297 Move 2732 | . 221 58 560 344 145 1191 213 Hop . | . . . . . . . . Pick Up 79 | . 12 . 27 22 7 8 3 Fast Attach 54 | . 2 . 14 8 3 20 7 Attach 20 | . 2 . 5 7 . 2 4 Detach 8 | . . . 2 5 . 1 . Swap 43 | . 1 . 8 5 8 15 6 Drop 85 | . 3 . 33 23 7 18 1 Fire 170 | . 15 2 75 66 4 . 8 Melee 119 | . . . . . 9 56 54 Ram . | . . . . . . . . Kick . | . . . . . . . . Crush 4 | . . . . 4 . . . Escape Stasis . | . . . . . . . . Rewire . | . . . . . . . . Trap . | . . . . . . . . Miscellaneous . | . . . . . . . . Route ------- -11/Scrapyard -10/Materials -10/Mines -9/Materials (discovered 4 exits: *Mat x2 / [*Min] / [*Sto]) -8/Materials -7/Factory -6/Factory (discovered 2 exits: *Fac x2) -5/Factory (discovered 2 exits: Upp x2) History --------- Turn | Location | Event 1 | -11/Scrapyard | Discovered new exit (range 0) 1 | -11/Scrapyard | Entered Materials 315 | -10/Materials | Build established: Mutant 386 | -10/Materials | Discovered new exit (range 9) 408 | -10/Materials | Entered Mines 409 | -10/Mines | Assembled infested the area 414 | -10/Mines | Assisted by a Guerilla fighting off Assembled 436 | -10/Mines | Met a Derelict bent on vengeance 465 | -10/Mines | Discovered new exit (range 10) 505 | -10/Mines | Entered Materials 505 | -9/Materials | Evolved 2 slots: Power x1, Propulsion x1 897 | -9/Materials | Destroyed 8 combat bots 999 | -9/Materials | Discovered new exit (range 15) 1089 | -9/Materials | Discovered new exit (range 6) 1128 | -9/Materials | Discovered new exit (range 16) 1665 | -9/Materials | Discovered new exit (range 14) 1707 | -9/Materials | Entered another Materials area 1707 | -8/Materials | Evolved 2 slots: Propulsion x1, Utility x1 2042 | -8/Materials | Build established: Hauler-Mutant 2265 | -8/Materials | Lost 4 parts (1p3n) 2343 | -8/Materials | Discovered new exit (range 16) 2450 | -8/Materials | Identified exit to Factory 2450 | -8/Materials | Entered Factory 2450 | -7/Factory | Evolved 2 slots: Propulsion x1, Utility x1 2528 | -7/Factory | Discovered new exit (range 15) 2596 | -7/Factory | Identified exit to Factory 2622 | -7/Factory | Entered another Factory area 2622 | -6/Factory | Evolved 2 slots: Utility x1, Weapon x1 2771 | -6/Factory | Repaired Gravmag System 2897 | -6/Factory | Fabricated Dispersion Rifle (x2) 2996 | -6/Factory | Discovered new exit (range 11) 3074 | -6/Factory | Build established: Scout 3144 | -6/Factory | Discovered new exit (range 11) 3201 | -6/Factory | Lost 4 parts (1p3n) 3244 | -6/Factory | Identified exit to Factory 3439 | -6/Factory | Spotted B-75 Beast 3512 | -6/Factory | Build established: Scavenger-Mutant 3609 | -6/Factory | Fabricated S-27 Virus? 3622 | -6/Factory | Local fabrication network quarantined 3627 | -6/Factory | Lost 7 parts (1p5n1u) 3713 | -6/Factory | Entered another Factory area 3713 | -5/Factory | Evolved 2 slots: Utility x2 3761 | -5/Factory | Identified exit to Upper Caves 4020 | -5/Factory | Build established: Scavenger-Assassin 4157 | -5/Factory | Lost 4 parts (1p3n) 4337 | -5/Factory | Lost 4 parts (1p2n1w) 4463 | -5/Factory | System corruption reached 10% 4468 | -5/Factory | Self-destructed Last Messages --------------- K-01 Serf cleans the Fabricator. System corrupted: Axe targeting data glitched. Axe destroyed. System corrupted by crushing effect (+2). Knocked back. Imp. Deuterium Engine destroyed. System corrupted by crushing effect (+4). B-60 Warrior Rnf. Fission Core severed. System corrupted: Energy discharge (-41). System corrupted: Chainsword targeting data glitched. Adv. Melee Analysis Suite destroyed. System corrupted by crushing effect (+1). Knocked back. G-50 Soldier destroyed. Lgt. Nuclear Core destroyed. Carbon-fiber Leg destroyed. System corrupted by crushing effect (+5). System corrupted by crushing effect (+2). Knocked back. Carbon-fiber Leg destroyed. Map ----- +----------------------------------------------------+ | ?????????????????????????????????????????????????? | | ?????????????????????????????????????????????????? | | ?????????????????????????????????????????????????? | | ?????????????????????????????????????????????????? | | ?????????????????????????????????????????????????? | | ?????????????????????????????????????????????????? | | ?????????????????????????????????????????????????? | | ?????????????????????????????????????????????????? | | ?????????????????????????????????????????????????? | | ?????????????????????????????????????????????????? | | ?????????????????????????????????????????????????? | | ?????????????????????????????????????????????????? | | ?????????????????????????????????????????????????? | | ???????????????>?????????????????????????????????? | | ?????????????????????????????????????????????????? | | ?????????????????????????????????????????????????? | | ???????????????????? ? ??????????????????????????? | | ??????????????? ? ???#??????????????????????????? | | ???????????????????????????#?????????????????????? | | ??????????????#?#???????#?#??????????????????????? | | ?????????#??##????????????#????#?????????????????? | | ????????????##? ?#?##????#??????#????????????????? | | ???????##???#?? ###########??? ??????????????????? | | ???????#?#????# # #??? ??? ??????????????? | | ?????#?????## # "" g*%#??? ??????????????????? | | ###?#??#?## # "" "" @#?? ???? ??????????????? | | ####?#?#### # """ """b# ?? ????#?????????????? | | ##??####### # """ F"*# ????????????????????? | | ######?#### # """ """ # ??? ????????????????? | | ########### # %"" # ? ?? ???????????????? | | ####?###### #! ![%*%! # ?????????????????? | | ########### #####+######/####????????????????? | | ^^ % ???????????? | | ???????????? | | ???????????? | | ????????????? | | ????????????? | | ##########+######+############ ?????????????? | | ## % # #? ????????????????? | | ## % # #? ????????????????? | | #" " # +???????????????? | | # %" """ """ # ?#???????????????? | | " [" """ """ # ?#???????????????? | | "" " """ """ ??? ? ????????????????? | | "" " # ? ????????????????? | | #"##### ""# ?? ????????????????? | | # ########### ?? ????????????????? | | # " #########?### ?????????????????? | | # "############## ????????????????????? | | + ######?##?####? ??????????????????? | +----------------------------------------------------+ Best States ------------- Heat Dissipation 40 Energy Generation 31 Energy Capacity 460 Matter Stores 300 Matter Capacity 300 Sight Range 16 Robot Scan Range 16 Terrain Scan Range 16 Terrain Scan Density 210 Armor Coverage 225 Evasion (%) 56 Melee Accuracy 8 Recoil Reduction 4 Force Boost 3 Offensive Hacking 10 Item Schematics ----------------- None Robot Schematics ------------------ None Fabricated ------------ Dispersion Rifle | x2 | -6/Factory | Preloaded S-27 Virus | x4 | -6/Factory | Preloaded Alien Tech Used ----------------- None Achievements -------------- Ambidextrous Challenges ------------ None Game ------ Seed WeightArmorArmor Manual? 0 Play Time 00:45:09 Cumulative 206.3 hours Start 2020.09.08 @ 22:56:05 End 2020.09.08 @ 23:56:33 Sessions 1 Manual Loads 0 Difficulty Rogue Special Mode None Game No. 223 Rogue 223 Adventurer 0 Explorer 0 Win Type - Total 8 Types 6/0/2/0/0/0/0 Lore% 74 Gallery% 84 Achievement% 63 Wizard Run 0 Options --------- ASCII 0 Keyboard 1 Movement Numpad Keybinds 0 Fullscreen 1 Font 20/SmallcapsGlow Map View 66x50 Tactical HUD 1 Map Filters NONE Filters NONE Steam 1 RUN: 19847631-d122-4c4f-a1cd-c5b5ec33d7b2